[Event "23rd ETCC Women 2021"]
[Site "Catez"]
[Date "2021.11.19"]
[Round "7.16"]
[White "Schneider, Jana"]
[Black "Kulon, Klaudia"]
[Result "0-1"]
[ECO "B32"]
[WhiteElo "2269"]
[BlackElo "2328"]
[Annotator "NA"]
[PlyCount "94"]
[EventDate "2021.11.08"]
[EventType "team-tourn"]
[EventCountry "SLO"]
[SourceTitle "playchess.com"]
[Source "ChessBase"]
[SourceQuality "1"]
[WhiteTeam "Germany"]
[BlackTeam "Poland"]
[WhiteTeamCountry "GER"]
[BlackTeamCountry "POL"]
[TimeControl "40/5400+30:1800+30"]

1. e4 {[%emt 0:00:03]} c5 {[%emt 0:00:04]} 2. Nf3 {[%emt 0:00:06]} Nc6 {
[%emt 0:00:07]} 3. d4 {[%emt 0:00:06]} cxd4 {[%emt 0:00:05]} 4. Nxd4 {[%emt 0:
00:06]} e5 {[%emt 0:00:07]} 5. Nb5 {[%emt 0:00:51]} d6 {[%emt 0:00:16]} 6. c4 {
[%emt 0:00:30]} g6 {[%emt 0:00:18]} 7. N1c3 {[%emt 0:01:12]} a6 {[%emt 0:00:11]
} 8. Na3 {[%emt 0:00:08]} Bg7 {[%emt 0:00:22]} 9. Be2 {[%emt 0:05:56]} Be6 {
[%emt 0:02:07]} 10. O-O {[%emt 0:08:39]} Nd4 {[%emt 0:03:17]} 11. Be3 {[%emt 0:
02:08]} Ne7 {[%emt 0:06:28]} 12. Qd2 {[%emt 0:05:38]} Rc8 {[%emt 0:07:56]} 13.
Rac1 {[%emt 0:04:33]} f5 {[%emt 0:07:04]} 14. Bg5 {[%emt 0:11:02]} h6 {[%emt 0:
09:46]} 15. exf5 {[%emt 0:04:02]} Nxe2+ {[%emt 0:05:56]} 16. Qxe2 {[%emt 0:02:
54]} gxf5 {[%emt 0:01:55]} 17. Be3 {[%emt 0:10:05]} f4 {[%emt 0:07:09]} 18.
Bxf4 {[%emt 0:02:12]} O-O {[%emt 0:00:11]} 19. Be3 {[%emt 0:04:41]} Nf5 {
[%emt 0:01:12]} 20. Ne4 {[%emt 0:04:16]} d5 {[%emt 0:09:11]} 21. Nc5 {[%emt 0:
06:59]} Bf7 {[%emt 0:00:57]} 22. cxd5 {[%emt 0:00:06]} Qxd5 {[%emt 0:01:02]}
23. Rfd1 {[%emt 0:02:01]} Nd4 {[%emt 0:01:09]} 24. Bxd4 {[%emt 0:01:34]} exd4 {
[%emt 0:00:02]} 25. Nd3 {[%emt 0:03:47]} Qxa2 {[%emt 0:06:49]} 26. Nc2 {
[%emt 0:01:13]} a5 {[%emt 0:02:09]} 27. Nxd4 {[%emt 0:01:04]} Rxc1 {[%emt 0:07:
11]} 28. Nxc1 {[%emt 0:02:00]} Qd5 {[%emt 0:00:42]} 29. Nf3 {[%emt 0:01:39]}
Qf5 {[%emt 0:01:32]} 30. Rd6 {[%emt 0:04:17]} Qb1 {[%emt 0:02:45]} 31. Rd1 {
[%emt 0:00:42]} Qxb2 {[%emt 0:00:23]} 32. Qe4 {[%emt 0:01:47]} b5 {[%emt 0:02:
19]} 33. Nd3 {[%emt 0:00:28]} Qb3 {[%emt 0:01:19]} 34. Rc1 {[%emt 0:00:42]} Qd5
{[%emt 0:02:40]} 35. Qxd5 {[%emt 0:04:52]} Bxd5 {[%emt 0:00:19]} 36. Nfe5 {
[%emt 0:00:14]} a4 {[%emt 0:02:40]} 37. Rc5 {[%emt 0:00:59]} a3 {[%emt 0:00:44]
} 38. Nb4 {[%emt 0:02:09]} Rd8 {[%emt 0:02:55]} 39. f4 {[%emt 0:00:40]} Bc4 {
[%emt 0:02:20]} 40. Nec6 {[%emt 0:02:34]} Ra8 {[%emt 0:02:21]} 41. Ne7+ {
[%emt 0:02:26]} Kf7 {[%emt 0:01:19]} 42. Nf5 {[%emt 0:00:19]} Bf8 {[%emt 0:00:
26]} 43. Rc7+ {[%emt 0:01:12]} Kf6 {[%emt 0:00:24]} 44. g4 {[%emt 0:00:30]}
Bxb4 {[%emt 0:00:50]} 45. Rc6+ {[%emt 0:00:39]} Kf7 {[%emt 0:00:22]} 46. Nxh6+
{[%emt 0:00:11]} Ke7 {[%emt 0:00:06]} 47. Nf5+ {[%emt 0:00:20]} Kd7 {[%emt 0:
00:05]} 0-1

[Event "23rd ETCC Women 2021"]
[Site "Catez"]
[Date "2021.11.19"]
[Round "7.17"]
[White "Gara, Ticia"]
[Black "Bulmaga, Irina"]
[Result "1-0"]
[ECO "E51"]
[WhiteElo "2331"]
[BlackElo "2405"]
[Annotator "NA"]
[PlyCount "75"]
[EventDate "2021.11.08"]
[EventType "team-tourn"]
[EventCountry "SLO"]
[SourceTitle "playchess.com"]
[Source "ChessBase"]
[SourceQuality "1"]
[WhiteTeam "Hungary"]
[BlackTeam "Romania"]
[WhiteTeamCountry "HUN"]
[BlackTeamCountry "ROU"]
[TimeControl "40/5400+30:1800+30"]

1. d4 {[%emt 0:00:03]} Nf6 {[%emt 0:00:07]} 2. c4 {[%emt 0:00:05]} e6 {[%emt 0:
00:06]} 3. Nc3 {[%emt 0:00:09]} Bb4 {[%emt 0:00:58]} 4. e3 {[%emt 0:00:23]} O-O
{[%emt 0:00:17]} 5. Nf3 {[%emt 0:00:25]} b6 {[%emt 0:01:05]} 6. Bd2 {[%emt 0:
01:26]} d5 {[%emt 0:01:38]} 7. Rc1 {[%emt 0:00:25]} Bb7 {[%emt 0:04:00]} 8.
cxd5 {[%emt 0:00:35]} exd5 {[%emt 0:00:08]} 9. Bd3 {[%emt 0:00:18]} Re8 {
[%emt 0:00:51]} 10. O-O {[%emt 0:00:30]} Bf8 {[%emt 0:03:24]} 11. Ne5 {[%emt 0:
00:45]} c5 {[%emt 0:05:24]} 12. f4 {[%emt 0:03:11]} Nc6 {[%emt 0:05:08]} 13.
Ne2 {[%emt 0:01:27]} Rc8 {[%emt 0:07:10]} 14. Be1 {[%emt 0:01:38]} Qd6 {
[%emt 0:16:53]} 15. Bh4 {[%emt 0:09:17]} c4 {[%emt 0:17:09]} 16. Bb1 {[%emt 0:
04:59]} Be7 {[%emt 0:02:14]} 17. Nc3 {[%emt 0:08:37]} g6 {[%emt 0:22:10]} 18.
Qf3 {[%emt 0:04:33]} Nh5 {[%emt 0:07:27]} 19. Nxf7 {[%emt 0:16:31]} Kxf7 {
[%emt 0:00:03]} 20. f5 {[%emt 0:00:05]} Nf6 {[%emt 0:00:25]} 21. fxg6+ {
[%emt 0:15:23]} hxg6 {[%emt 0:00:03]} 22. Qxd5+ {[%emt 0:04:29]} Qxd5 {[%emt 0:
00:30]} 23. Nxd5 {[%emt 0:00:03]} Nxd4 {[%emt 0:02:48]} 24. Nxe7 {[%emt 0:06:
17]} Ne2+ {[%emt 0:00:02]} 25. Kh1 {[%emt 0:00:06]} Rh8 {[%emt 0:02:24]} 26.
Bxg6+ {[%emt 0:08:39]} Kxe7 {[%emt 0:00:08]} 27. Bxf6+ {[%emt 0:00:05]} Kd6 {
[%emt 0:00:50]} 28. Rcd1+ {[%emt 0:00:41]} Kc5 {[%emt 0:00:24]} 29. Rf5+ {
[%emt 0:01:26]} Kb4 {[%emt 0:00:07]} 30. a3+ {[%emt 0:03:29]} Kb3 {[%emt 0:00:
56]} 31. Rb5+ {[%emt 0:03:01]} Ka4 {[%emt 0:00:03]} 32. Rb4+ {[%emt 0:00:08]}
Ka5 {[%emt 0:00:04]} 33. Bxh8 {[%emt 0:00:30]} Rxh8 {[%emt 0:00:24]} 34. Rxc4 {
[%emt 0:01:27]} Ng3+ {[%emt 0:00:22]} 35. Kg1 {[%emt 0:00:03]} Rg8 {[%emt 0:01:
30]} 36. Rg4 {[%emt 0:02:19]} Ne2+ {[%emt 0:00:24]} 37. Kf2 {[%emt 0:00:06]}
Ba6 {[%emt 0:00:48]} 38. b4+ {[%emt 0:00:38]} 1-0

[Event "23rd ETCC Women 2021"]
[Site "Catez"]
[Date "2021.11.19"]
[Round "7.18"]
[White "Peptan, Corina-Isabela"]
[Black "Gaal, Zsoka"]
[Result "1-0"]
[ECO "A30"]
[WhiteElo "2385"]
[BlackElo "2336"]
[Annotator "NA"]
[PlyCount "69"]
[EventDate "2021.11.08"]
[EventType "team-tourn"]
[EventCountry "SLO"]
[SourceTitle "playchess.com"]
[Source "ChessBase"]
[SourceQuality "1"]
[WhiteTeam "Romania"]
[BlackTeam "Hungary"]
[WhiteTeamCountry "ROU"]
[BlackTeamCountry "HUN"]
[TimeControl "40/5400+30:1800+30"]

1. c4 {[%emt 0:00:04]} c5 {[%emt 0:01:51]} 2. Nf3 {[%emt 0:00:23]} Nc6 {
[%emt 0:00:26]} 3. b3 {[%emt 0:06:36]} d6 {[%emt 0:08:35]} 4. Bb2 {[%emt 0:03:
41]} e5 {[%emt 0:01:08]} 5. e3 {[%emt 0:01:46]} Nf6 {[%emt 0:00:53]} 6. Nc3 {
[%emt 0:08:19]} Be7 {[%emt 0:09:19]} 7. Be2 {[%emt 0:24:02]} d5 {[%emt 0:02:53]
} 8. cxd5 {[%emt 0:00:32]} Nxd5 {[%emt 0:00:05]} 9. O-O {[%emt 0:06:38]} O-O {
[%emt 0:01:25]} 10. Qb1 {[%emt 0:06:57]} Be6 {[%emt 0:06:28]} 11. Bd3 {[%emt 0:
03:35]} f5 {[%emt 0:09:36]} 12. Nxd5 {[%emt 0:02:56]} Qxd5 {[%emt 0:00:58]} 13.
e4 {[%emt 0:02:24]} Qd6 {[%emt 0:09:25]} 14. exf5 {[%emt 0:00:40]} Bd5 {
[%emt 0:00:10]} 15. Be4 {[%emt 0:03:55]} Nd4 {[%emt 0:05:39]} 16. Bxd4 {
[%emt 0:03:20]} exd4 {[%emt 0:00:34]} 17. Re1 {[%emt 0:00:39]} Bd8 {[%emt 0:05:
29]} 18. Bxd5+ {[%emt 0:00:49]} Qxd5 {[%emt 0:00:01]} 19. Re5 {[%emt 0:00:08]}
Qd6 {[%emt 0:05:00]} 20. Qe4 {[%emt 0:01:41]} Bf6 {[%emt 0:02:36]} 21. Re6 {
[%emt 0:01:07]} Qc7 {[%emt 0:04:18]} 22. Rc1 {[%emt 0:02:12]} Qa5 {[%emt 0:04:
02]} 23. a4 {[%emt 0:01:54]} b6 {[%emt 0:05:40]} 24. d3 {[%emt 0:08:02]} Rad8 {
[%emt 0:06:57]} 25. Rc4 {[%emt 0:01:13]} Rc8 {[%emt 0:03:02]} 26. Qd5 {[%emt 0:
05:03]} Kh8 {[%emt 0:00:05]} 27. g4 {[%emt 0:00:12]} Rfd8 {[%emt 0:06:10]} 28.
Qe4 {[%emt 0:00:18]} h6 {[%emt 0:00:29]} 29. h4 {[%emt 0:02:12]} b5 {[%emt 0:
00:27]} 30. axb5 {[%emt 0:00:13]} Qa1+ {[%emt 0:00:42]} 31. Kg2 {[%emt 0:00:21]
} Qd1 {[%emt 0:00:12]} 32. g5 {[%emt 0:00:54]} Rg8 {[%emt 0:00:02]} 33. b4 {
[%emt 0:03:04]} cxb4 {[%emt 0:00:48]} 34. Rxc8 {[%emt 0:00:11]} Rxc8 {[%emt 0:
00:05]} 35. Re8+ {[%emt 0:00:06]} 1-0

[Event "23rd ETCC Women 2021"]
[Site "Catez"]
[Date "2021.11.19"]
[Round "7.19"]
[White "Terbe, Julianna"]
[Black "Cosma, Elena-Luminita"]
[Result "1/2-1/2"]
[ECO "D02"]
[WhiteElo "2318"]
[BlackElo "2281"]
[Annotator "ChessBase"]
[PlyCount "132"]
[EventDate "2021.11.08"]
[EventType "team-tourn"]
[EventCountry "SLO"]
[SourceTitle "playchess.com"]
[Source "ChessBase"]
[SourceQuality "1"]
[WhiteTeam "Hungary"]
[BlackTeam "Romania"]
[WhiteTeamCountry "HUN"]
[BlackTeamCountry "ROU"]
[TimeControl "40/5400+30:1800+30"]

1. Nf3 {[%emt 0:00:05]} d5 {[%emt 0:00:09]} 2. g3 {[%emt 0:00:06]} c5 {[%emt 0:
00:12]} 3. Bg2 {[%emt 0:00:06]} Nc6 {[%emt 0:00:16]} 4. d4 {[%emt 0:00:06]} e6
{[%emt 0:00:59]} 5. O-O {[%emt 0:00:08]} cxd4 {[%emt 0:00:08]} 6. Nxd4 {
[%emt 0:00:10]} Bc5 {[%emt 0:00:10]} 7. Nb3 {[%emt 0:08:31]} Bb6 {[%emt 0:00:
22]} 8. c4 {[%emt 0:02:57]} dxc4 {[%emt 0:01:43]} 9. N3d2 {[%emt 0:01:45]} Nge7
{[%emt 0:32:08]} 10. Nxc4 {[%emt 0:03:11]} O-O {[%emt 0:00:12]} 11. Nc3 {
[%emt 0:08:46]} e5 {[%emt 0:10:03]} 12. Nxb6 {[%emt 0:10:51]} Qxb6 {[%emt 0:00:
28]} 13. Qa4 {[%emt 0:01:25]} Be6 {[%emt 0:07:05]} 14. Be3 {[%emt 0:11:32]} Nd4
{[%emt 0:06:05]} 15. Rfd1 {[%emt 0:06:06]} Rad8 {[%emt 0:07:08]} 16. Rd2 {
[%emt 0:03:35]} Nef5 {[%emt 0:03:16]} 17. Bxd4 {[%emt 0:04:53]} Rxd4 {[%emt 0:
00:11]} 18. Qc2 {[%emt 0:03:52]} Rxd2 {[%emt 0:01:41]} 19. Qxd2 {[%emt 0:00:04]
} Rd8 {[%emt 0:00:16]} 20. Qc1 {[%emt 0:00:13]} h6 {[%emt 0:05:39]} 21. e3 {
[%emt 0:06:41]} Ne7 {[%emt 0:02:16]} 22. Na4 {[%emt 0:08:12]} Qa5 {[%emt 0:04:
02]} 23. b3 {[%emt 0:03:52]} Rc8 {[%emt 0:02:33]} 24. Qa3 {[%emt 0:01:28]} Nd5
{[%emt 0:05:38]} 25. Qd6 {[%emt 0:01:17]} Qc7 {[%emt 0:03:10]} 26. Qxc7 {
[%emt 0:01:17]} Rxc7 {[%emt 0:00:04]} 27. Nb2 {[%emt 0:01:23]} Nb4 {[%emt 0:00:
53]} 28. Nc4 {[%emt 0:02:55]} Bxc4 {[%emt 0:03:38]} 29. bxc4 {[%emt 0:00:04]}
b6 {[%emt 0:00:41]} 30. Bd5 {[%emt 0:04:56]} Kf8 {[%emt 0:00:35]} 31. a3 {
[%emt 0:03:09]} Nxd5 {[%emt 0:00:20]} 32. cxd5 {[%emt 0:00:04]} e4 {[%emt 0:00:
18]} 33. Rb1 {[%emt 0:02:17]} Rc4 {[%emt 0:01:03]} 34. f3 {[%emt 0:00:50]} exf3
{[%emt 0:00:21]} 35. Kf2 {[%emt 0:00:03]} Ke7 {[%emt 0:00:13]} 36. Kxf3 {
[%emt 0:00:14]} Kd6 {[%emt 0:00:13]} 37. e4 {[%emt 0:01:09]} g6 {[%emt 0:01:46]
} 38. Rb3 {[%emt 0:00:34]} f5 {[%emt 0:00:21]} 39. exf5 {[%emt 0:00:18]} gxf5 {
[%emt 0:00:08]} 40. Rd3 {[%emt 0:00:05]} b5 {[%emt 0:00:42]} 41. Kg2 {[%emt 0:
11:28]} Rc5 {[%emt 0:05:09]} 42. Re3 {[%emt 0:00:50]} Kxd5 {[%emt 0:00:56]} 43.
Re7 {[%emt 0:01:31]} a5 {[%emt 0:00:26]} 44. Rh7 {[%emt 0:00:21]} b4 {[%emt 0:
14:45]} 45. axb4 {[%emt 0:00:11]} axb4 {[%emt 0:00:05]} 46. Rxh6 {[%emt 0:01:
14]} Rb5 {[%emt 0:01:23]} 47. Rh8 {[%emt 0:02:17]} b3 {[%emt 0:00:06]} 48. Rd8+
{[%emt 0:00:16]} Kc4 {[%emt 0:00:05]} 49. Rd1 {[%emt 0:00:04]} b2 {[%emt 0:00:
25]} 50. Rb1 {[%emt 0:00:06]} Kc3 {[%emt 0:00:05]} 51. Kf3 {[%emt 0:01:12]} Rb4
{[%emt 0:01:08]} 52. h4 {[%emt 0:01:03]} Kc2 {[%emt 0:00:06]} 53. Rh1 {[%emt 0:
03:44]} b1=Q {[%emt 0:00:04]} 54. Rxb1 {[%emt 0:00:04]} Kxb1 {[%emt 0:00:13]}
55. h5 {[%emt 0:00:24]} Kc2 {[%emt 0:00:06]} 56. h6 {[%emt 0:00:56]} Rb6 {
[%emt 0:00:04]} 57. Kf4 {[%emt 0:00:07]} Rxh6 {[%emt 0:00:18]} 58. Kxf5 {
[%emt 0:00:04]} Rh5+ {[%emt 0:10:49]} 59. Kf6 {[%emt 0:03:04]} Kd3 {[%emt 0:00:
02]} 60. g4 {[%emt 0:00:08]} Ra5 {[%emt 0:00:04]} 61. g5 {[%emt 0:00:36]} Ke4 {
[%emt 0:00:06]} 62. g6 {[%emt 0:00:15]} Ra6+ {[%emt 0:00:45]} 63. Kf7 {[%emt 0:
02:37]} Kf5 {[%emt 0:00:10]} 64. g7 {[%emt 0:00:02]} Ra7+ {[%emt 0:00:08]} 65.
Kg8 {[%emt 0:00:34]} Kf6 {[%emt 0:06:32]} 66. Kh8 {[%emt 0:00:05]} Rxg7 {
[%emt 0:00:12]} 1/2-1/2

[Event "23rd ETCC Women 2021"]
[Site "Catez"]
[Date "2021.11.19"]
[Round "7.21"]
[White "Zimina, Olga"]
[Black "Peng, Zhaoqin"]
[Result "1/2-1/2"]
[ECO "D26"]
[WhiteElo "2339"]
[BlackElo "2351"]
[Annotator "NA"]
[PlyCount "62"]
[EventDate "2021.11.08"]
[EventType "team-tourn"]
[EventCountry "SLO"]
[SourceTitle "playchess.com"]
[Source "ChessBase"]
[SourceQuality "1"]
[WhiteTeam "Italy"]
[BlackTeam "Netherlands"]
[WhiteTeamCountry "ITA"]
[BlackTeamCountry "NED"]
[TimeControl "40/5400+30:1800+30"]

1. d4 {[%emt 0:00:05]} d5 {[%emt 0:00:16]} 2. Nf3 {[%emt 0:00:06]} Nf6 {
[%emt 0:00:17]} 3. c4 {[%emt 0:00:17]} dxc4 {[%emt 0:00:48]} 4. e3 {[%emt 0:00:
10]} e6 {[%emt 0:00:27]} 5. Bxc4 {[%emt 0:00:07]} c5 {[%emt 0:00:18]} 6. O-O {
[%emt 0:00:32]} Nc6 {[%emt 0:00:17]} 7. Nc3 {[%emt 0:01:03]} cxd4 {[%emt 0:05:
07]} 8. exd4 {[%emt 0:01:42]} Be7 {[%emt 0:00:10]} 9. Qe2 {[%emt 0:03:09]} O-O
{[%emt 0:02:02]} 10. Rd1 {[%emt 0:00:12]} Na5 {[%emt 0:09:29]} 11. Bd3 {
[%emt 0:03:42]} b6 {[%emt 0:00:07]} 12. Bg5 {[%emt 0:22:19]} Bb7 {[%emt 0:00:
19]} 13. Ne5 {[%emt 0:06:51]} Nd5 {[%emt 0:18:22]} 14. Qh5 {[%emt 0:22:03]} f5
{[%emt 0:19:02]} 15. Bxe7 {[%emt 0:10:22]} Qxe7 {[%emt 0:00:12]} 16. Nxd5 {
[%emt 0:00:09]} Bxd5 {[%emt 0:00:05]} 17. Ba6 {[%emt 0:04:26]} Nc6 {[%emt 0:13:
01]} 18. Nxc6 {[%emt 0:00:42]} Bxc6 {[%emt 0:02:19]} 19. Bc4 {[%emt 0:00:05]}
Rad8 {[%emt 0:00:57]} 20. Qe2 {[%emt 0:03:30]} Bd5 {[%emt 0:00:32]} 21. Re1 {
[%emt 0:00:19]} Rf6 {[%emt 0:04:42]} 22. Rac1 {[%emt 0:00:46]} Qb7 {[%emt 0:03:
54]} 23. f3 {[%emt 0:12:36]} Bxc4 {[%emt 0:08:32]} 24. Qxc4 {[%emt 0:00:14]}
Qd5 {[%emt 0:00:06]} 25. Qxd5 {[%emt 0:02:39]} Rxd5 {[%emt 0:00:13]} 26. Rc8+ {
[%emt 0:00:05]} Rf8 {[%emt 0:00:08]} 27. Rxf8+ {[%emt 0:00:12]} Kxf8 {[%emt 0:
00:07]} 28. Rxe6 {[%emt 0:00:03]} Rxd4 {[%emt 0:00:08]} 29. Kf2 {[%emt 0:01:07]
} Kf7 {[%emt 0:01:36]} 30. Re2 {[%emt 0:00:06]} Rc4 {[%emt 0:01:08]} 31. Ke3 {
[%emt 0:00:52]} g5 {[%emt 0:05:57]} 1/2-1/2

[Event "23rd ETCC Women 2021"]
[Site "Catez"]
[Date "2021.11.19"]
[Round "7.22"]
[White "Roebers, Eline"]
[Black "Sedina, Elena"]
[Result "1-0"]
[ECO "C28"]
[WhiteElo "2304"]
[BlackElo "2263"]
[Annotator "NA"]
[PlyCount "73"]
[EventDate "2021.11.08"]
[EventType "team-tourn"]
[EventCountry "SLO"]
[SourceTitle "playchess.com"]
[Source "ChessBase"]
[SourceQuality "1"]
[WhiteTeam "Netherlands"]
[BlackTeam "Italy"]
[WhiteTeamCountry "NED"]
[BlackTeamCountry "ITA"]
[TimeControl "40/5400+30:1800+30"]

1. e4 {[%emt 0:00:06]} e5 {[%emt 0:00:33]} 2. Bc4 {[%emt 0:00:43]} Nc6 {
[%emt 0:03:46]} 3. Nc3 {[%emt 0:00:08]} Nf6 {[%emt 0:04:26]} 4. d3 {[%emt 0:00:
24]} Bb4 {[%emt 0:12:49]} 5. Bg5 {[%emt 0:11:35]} h6 {[%emt 0:01:09]} 6. Bh4 {
[%emt 0:01:09]} Na5 {[%emt 0:25:49]} 7. Bb3 {[%emt 0:01:42]} Nxb3 {[%emt 0:10:
42]} 8. axb3 {[%emt 0:00:07]} Be7 {[%emt 0:00:24]} 9. Nge2 {[%emt 0:15:35]} c6
{[%emt 0:07:41]} 10. d4 {[%emt 0:07:36]} d6 {[%emt 0:00:06]} 11. O-O {[%emt 0:
01:36]} O-O {[%emt 0:07:48]} 12. f3 {[%emt 0:05:31]} b5 {[%emt 0:09:54]} 13. b4
{[%emt 0:05:07]} Qc7 {[%emt 0:00:05]} 14. Qd3 {[%emt 0:04:08]} Rd8 {[%emt 0:04:
01]} 15. Bxf6 {[%emt 0:11:17]} Bxf6 {[%emt 0:00:04]} 16. d5 {[%emt 0:00:04]}
Bd7 {[%emt 0:05:06]} 17. Ra6 {[%emt 0:06:17]} Rdb8 {[%emt 0:02:58]} 18. dxc6 {
[%emt 0:01:56]} Bxc6 {[%emt 0:00:01]} 19. Rfa1 {[%emt 0:00:57]} Bd8 {[%emt 0:
01:32]} 20. Ng3 {[%emt 0:02:32]} g6 {[%emt 0:00:48]} 21. Nf1 {[%emt 0:00:56]}
Rb6 {[%emt 0:00:38]} 22. R6a3 {[%emt 0:01:28]} Rb7 {[%emt 0:00:28]} 23. Ne3 {
[%emt 0:00:28]} Bg5 {[%emt 0:00:35]} 24. Ned5 {[%emt 0:00:26]} Qd7 {[%emt 0:00:
25]} 25. Ra6 {[%emt 0:01:13]} Bd8 {[%emt 0:00:26]} 26. Qe3 {[%emt 0:02:53]} Kg7
{[%emt 0:00:07]} 27. Kh1 {[%emt 0:02:42]} h5 {[%emt 0:00:35]} 28. f4 {[%emt 0:
02:56]} Bb6 {[%emt 0:00:43]} 29. Qd3 {[%emt 0:01:32]} exf4 {[%emt 0:00:40]} 30.
Rxb6 {[%emt 0:01:47]} Rxb6 {[%emt 0:00:05]} 31. Qd4+ {[%emt 0:00:04]} Kh6 {
[%emt 0:01:04]} 32. Nxb6 {[%emt 0:00:12]} axb6 {[%emt 0:00:25]} 33. Rxa8 {
[%emt 0:00:05]} Bxa8 {[%emt 0:00:10]} 34. Qh8+ {[%emt 0:00:04]} Kg5 {[%emt 0:
00:45]} 35. Qxa8 {[%emt 0:00:12]} Kh6 {[%emt 0:00:39]} 36. Qh8+ {[%emt 0:01:30]
} Kg5 {[%emt 0:00:02]} 37. e5 {[%emt 0:01:06]} 1-0

[Event "23rd ETCC Women 2021"]
[Site "Catez"]
[Date "2021.11.19"]
[Round "7.23"]
[White "Gueci, Tea"]
[Black "Van Foreest, Machteld"]
[Result "1/2-1/2"]
[ECO "B40"]
[WhiteElo "2242"]
[BlackElo "2141"]
[Annotator "NA"]
[PlyCount "94"]
[EventDate "2021.11.08"]
[EventType "team-tourn"]
[EventCountry "SLO"]
[SourceTitle "playchess.com"]
[Source "ChessBase"]
[SourceQuality "1"]
[WhiteTeam "Italy"]
[BlackTeam "Netherlands"]
[WhiteTeamCountry "ITA"]
[BlackTeamCountry "NED"]
[TimeControl "40/5400+30:1800+30"]

1. e4 {[%emt 0:00:03]} c5 {[%emt 0:00:15]} 2. Nf3 {[%emt 0:00:04]} e6 {[%emt 0:
00:14]} 3. d4 {[%emt 0:00:04]} cxd4 {[%emt 0:00:14]} 4. Nxd4 {[%emt 0:00:04]}
Nf6 {[%emt 0:00:17]} 5. Nc3 {[%emt 0:00:17]} Nc6 {[%emt 0:00:07]} 6. Nxc6 {
[%emt 0:09:28]} bxc6 {[%emt 0:00:22]} 7. Bd3 {[%emt 0:00:36]} Be7 {[%emt 0:11:
40]} 8. O-O {[%emt 0:03:14]} d5 {[%emt 0:03:29]} 9. Qe2 {[%emt 0:05:30]} O-O {
[%emt 0:07:05]} 10. Bf4 {[%emt 0:09:45]} Re8 {[%emt 0:03:50]} 11. Rad1 {
[%emt 0:05:06]} Qb6 {[%emt 0:06:26]} 12. b3 {[%emt 0:06:29]} e5 {[%emt 0:11:53]
} 13. Na4 {[%emt 0:13:07]} Qc7 {[%emt 0:08:05]} 14. Bg3 {[%emt 0:03:11]} Bd6 {
[%emt 0:03:44]} 15. c4 {[%emt 0:05:20]} dxe4 {[%emt 0:05:30]} 16. Bxe4 {
[%emt 0:00:40]} Nxe4 {[%emt 0:12:15]} 17. Qxe4 {[%emt 0:00:06]} f5 {[%emt 0:00:
58]} 18. Qe2 {[%emt 0:05:17]} g6 {[%emt 0:07:49]} 19. c5 {[%emt 0:03:35]} Bf8 {
[%emt 0:00:46]} 20. Rfe1 {[%emt 0:01:45]} Bg7 {[%emt 0:00:09]} 21. Rd6 {
[%emt 0:04:08]} Be6 {[%emt 0:01:59]} 22. Red1 {[%emt 0:05:51]} Bf8 {[%emt 0:03:
36]} 23. Bxe5 {[%emt 0:04:18]} Bd5 {[%emt 0:01:20]} 24. Qb2 {[%emt 0:03:42]}
Qe7 {[%emt 0:02:38]} 25. f4 {[%emt 0:02:09]} Bg7 {[%emt 0:01:18]} 26. Bxg7 {
[%emt 0:00:57]} Qe3+ {[%emt 0:00:03]} 27. Qf2 {[%emt 0:00:31]} Kxg7 {[%emt 0:
00:02]} 28. Rd7+ {[%emt 0:01:29]} Kg8 {[%emt 0:02:37]} 29. Qxe3 {[%emt 0:04:31]
} Rxe3 {[%emt 0:00:02]} 30. Kf2 {[%emt 0:01:06]} Rae8 {[%emt 0:00:06]} 31. Rd2
{[%emt 0:00:09]} R3e4 {[%emt 0:01:00]} 32. g3 {[%emt 0:00:30]} Re3 {[%emt 0:00:
19]} 33. R7xd5 {[%emt 0:02:04]} cxd5 {[%emt 0:00:01]} 34. c6 {[%emt 0:00:28]}
R3e6 {[%emt 0:01:19]} 35. Nc5 {[%emt 0:00:40]} Rxc6 {[%emt 0:00:08]} 36. Rxd5 {
[%emt 0:00:04]} Rec8 {[%emt 0:00:38]} 37. b4 {[%emt 0:00:20]} R6c7 {[%emt 0:01:
46]} 38. h3 {[%emt 0:00:39]} Re8 {[%emt 0:01:01]} 39. g4 {[%emt 0:00:45]} fxg4
{[%emt 0:02:46]} 40. hxg4 {[%emt 0:00:02]} Rce7 {[%emt 0:01:27]} 41. Rd2 {
[%emt 0:03:13]} Rf8 {[%emt 0:05:36]} 42. Rd4 {[%emt 0:03:14]} Rfe8 {[%emt 0:02:
54]} 43. Rd2 {[%emt 0:00:07]} Kg7 {[%emt 0:01:26]} 44. a4 {[%emt 0:03:18]} Rf7
{[%emt 0:03:08]} 45. Rd4 {[%emt 0:02:58]} Rfe7 {[%emt 0:01:44]} 46. Rd2 {
[%emt 0:00:32]} Rf7 {[%emt 0:01:00]} 47. Rd4 {[%emt 0:00:15]} Rfe7 {[%emt 0:00:
20]} 1/2-1/2